bitfinex-derivatives/quotes_ETHF0:USTF0_20260112
["timestamp","ask_amount","ask_price","bid_price","bid_amount"]
[1768230990246,3.55299549,3101.8,3100.0,0.00409599]
[1768230990449,3.71438549,3101.8,3100.0,0.00409599]
[1768230992748,3.55299549,3101.8,3100.1,0.16147]
[1768230993040,0.16137,3102.2,3100.2,3.5847885]
[1768230993246,0.16137,3102.2,3100.4,3.4233185]
[1768230993847,3.71436549,3102.2,3100.4,3.4233185]
[1768230994642,3.71436549,3102.2,3100.4,3.5847785]
[1768230995651,3.55299549,3102.2,3100.6,0.16144]
[1768230996944,1.308,3102.5,3100.7,0.16144]
[1768230997147,1.308,3102.5,3100.7,3.46920354]
[1768230997950,1.308,3102.5,3100.8,3.46920354]
[1768230998148,3.54262742,3102.7,3100.9,3.30776354]
[1768230998948,3.54262742,3102.7,3101.0,0.16143]
[1768230999153,3.38128742,3102.7,3101.0,0.16143]
[1768230999954,3.38128742,3102.7,3101.0,3.46919354]
[1768231000553,3.38128742,3102.7,3101.0,3.30776354]
[1768231000756,3.38128742,3103.2,3101.5,0.1614]
[1768231001351,3.54259742,3103.2,3101.5,0.1614]
[1768231001555,3.38128742,3103.0,3100.9,3.46919354]
[1768231002357,3.38128742,3102.7,3101.0,0.16143]
[1768231003952,3.38128742,3103.2,3100.9,3.30776354]
[1768231004250,0.00408629,3103.3,3101.8,0.16138]
[1768231005756,3.38537371,3103.3,3101.8,0.16138]
[1768231005953,3.38537371,3103.3,3101.1,3.30776354]
[1768231006158,3.38128742,3102.5,3100.6,3.30776354]
[1768231006358,3.38128742,3102.4,3100.6,3.30776354]
[1768231006651,1.308,3102.5,3100.0,0.16557599]
[1768231006652,3.54266742,3102.0,3100.0,0.16557599]
[1768231006957,3.38128742,3101.8,3100.0,0.16557599]
[1768231009353,3.38128742,3101.6,3100.0,0.00409599]
[1768231009558,6.60828742,3102.1,3100.0,3.31185953]
[1768231009850,4.43328742,3102.0,3100.0,3.31185953]
[1768231010056,3.38128742,3101.9,3100.0,3.31185953]
[1768231010760,3.54266742,3101.9,3100.0,0.00409599]
[1768231010958,3.38128742,3101.6,3100.0,0.00409599]
[1768231011161,0.16141,3101.4,3100.0,0.00409599]
[1768231011459,3.54269742,3101.4,3100.0,0.00409599]
[1768231013662,0.16141,3101.4,3100.0,0.00409599]
[1768231014460,3.54269742,3101.4,3100.0,0.00409599]
[1768231015658,3.38128742,3101.1,3100.0,0.00409599]
[1768231015857,3.38516259,3101.1,3100.0,0.00409599]
[1768231016560,3.38516259,3101.1,3099.1,0.16153]
[1768231017559,0.16143,3101.0,3099.1,0.16439486]
[1768231017854,3.38128742,3100.4,3099.1,0.00286486]
[1768231018060,3.54276742,3100.0,3098.3,0.25342413]
[1768231018655,3.54276742,3100.0,3097.9,3.46935354]
[1768231018860,3.54276742,3100.0,3098.0,0.16158]
[1768231019061,3.54276742,3100.0,3098.0,0.16526668]
[1768231019363,3.38128742,3100.6,3098.4,3.30776354]
[1768231019562,3.38128742,3100.4,3098.4,3.30776354]
[1768231020460,4.68928742,3100.4,3098.4,3.30776354]
[1768231020760,3.38128742,3100.3,3098.5,0.16156]
[1768231021164,3.38128742,3100.3,3098.5,3.46932354]
[1768231021571,3.54271742,3101.0,3098.9,3.30776354]
[1768231021855,3.38128742,3101.0,3098.9,3.30776354]
[1768231022060,3.38128742,3101.0,3099.3,3.46927354]
[1768231022260,0.00387517,3101.1,3099.6,3.30776354]
[1768231022459,0.00387517,3101.1,3099.6,3.46926354]
[1768231023056,0.00387517,3101.1,3100.1,0.16147]
[1768231023262,4.39628742,3102.1,3100.1,3.46923354]
[1768231023664,3.38128742,3102.1,3100.2,3.30776354]
[1768231024266,3.38438582,3102.1,3100.2,3.31141335]
[1768231024564,3.38438582,3102.1,3100.3,0.16146]
[1768231024864,3.38438582,3102.1,3100.2,0.00364981]
[1768231026264,3.611972,3101.9,3100.2,0.00364981]
[1768231026764,3.611972,3101.6,3100.2,0.00364981]
[1768231028764,3.773372,3101.6,3100.2,0.00364981]
[1768231029081,3.611972,3101.4,3099.3,0.16152]
[1768231029868,3.611972,3101.4,3099.3,0.16388663]
[1768231030568,3.773382,3101.4,3099.3,0.16388663]
[1768231031070,3.611972,3101.1,3099.3,0.00236663]
[1768231031273,3.611972,3100.9,3099.3,0.00236663]
[1768231033274,3.54052066,3100.7,3099.3,0.00236663]
[1768231033466,0.16146,3100.5,3099.3,0.00236663]
[1768231033665,3.54054066,3100.4,3098.3,0.16157]
[1768231034574,3.54054066,3100.4,3098.3,0.16463968]
[1768231037374,3.54054066,3100.4,3098.3,3.54124137]
[1768231037969,3.54054066,3100.4,3098.3,3.37967137]
[1768231038170,4.84854066,3100.4,3098.5,3.37660169]
[1768231038372,6.60708066,3100.9,3098.9,3.37660169]
[1768231038674,6.60708066,3100.9,3099.2,3.53812169]
[1768231042471,3.37908066,3100.8,3099.2,0.16152]
[1768231042777,3.37908066,3100.8,3098.7,3.37660169]
[1768231042978,3.37908066,3100.8,3098.7,3.53814169]
[1768231043179,3.37908066,3100.8,3098.8,0.16154]
[1768231043677,3.37908066,3100.8,3098.7,3.37660169]
[1768231043878,1.308,3100.7,3099.0,0.16153]
[1768231044093,3.37908066,3101.3,3099.1,3.37660169]
[1768231044273,1.308,3101.2,3099.5,0.1615]
[1768231046179,4.68708066,3101.2,3099.5,0.1615]
[1768231046676,3.37908066,3101.1,3099.5,0.1615]
[1768231047276,1.308,3101.2,3099.6,0.1615]
[1768231047472,3.37908066,3101.6,3099.7,0.16149]
[1768231047671,1.308,3101.5,3099.7,0.16149]
[1768231047872,3.37908066,3101.4,3099.7,0.16149]
[1768231048281,3.37908066,3101.2,3099.1,3.53812169]
[1768231048977,3.54050066,3101.2,3099.1,3.53812169]
[1768231050082,3.54050066,3101.2,3099.2,0.16152]
[1768231050274,3.54050066,3101.2,3099.1,3.37660169]
[1768231050275,3.54050066,3101.2,3099.3,0.16151]
[1768231051784,3.54050066,3101.2,3099.5,0.1615]
[1768231051980,4.68708066,3101.2,3099.6,0.1615]
[1768231052484,3.54047066,3101.7,3099.8,3.37660169]
[1768231053584,3.54047066,3101.7,3099.9,0.16148]
[1768231055186,0.0030984,3102.1,3100.3,0.16146]
[1768231055377,1.308,3102.0,3100.3,0.16146]
[1768231056187,3.49352844,3102.1,3100.3,0.16146]
[1768231056382,1.308,3102.0,3100.3,0.16146]
[1768231056684,4.79843004,3102.0,3100.3,0.16146]
[1768231057587,3.49043004,3101.9,3100.3,0.16146]
[1768231057879,3.49043004,3101.9,3099.8,3.53809169]
[1768231058085,3.49043004,3101.9,3099.9,0.16148]
[1768231058586,3.65183004,3101.7,3099.9,0.16148]
[1768231060486,3.49043004,3102.0,3100.3,0.16146]
[1768231063491,1.3110984,3102.1,3100.2,3.32589663]
[1768231063988,0.0030984,3102.1,3100.7,3.32589663]
[1768231064185,0.0030984,3102.1,3100.7,3.32829602]
[1768231064587,4.79843004,3103.0,3101.3,0.16141]
[1768231064787,3.49043004,3103.0,3101.4,0.16141]
[1768231065586,0.0035139,3103.0,3101.5,2.00032457]
[1768231065791,0.0035139,3103.0,3101.8,0.16138]
[1768231065987,0.0035139,3103.0,3101.8,0.42307634]
[1768231066191,0.0035139,3103.0,3101.9,0.16138]
[1768231067191,0.0035139,3103.0,3101.9,3.48727663]
[1768231067892,0.0035139,3103.0,3102.0,0.16137]
[1768231069689,1.288,3103.9,3102.0,0.16137]
[1768231069896,4.95870004,3104.0,3102.0,3.48726663]
[1768231070191,4.95870004,3104.0,3102.1,3.32589663]
[1768231070192,3.49043004,3104.0,3102.1,3.32589663]
[1768231070392,3.49043004,3104.6,3102.7,3.32589663]
[1768231070695,0.00412624,3104.6,3103.0,5.4875412]
[1768231070895,0.00412624,3104.6,3103.0,5.49026315]
[1768231071795,0.00412624,3104.6,3103.0,3.48993858]
[1768231071992,3.49455628,3104.6,3103.0,0.16404195]
[1768231072187,3.49043004,3104.5,3103.0,0.00272195]
[1768231072387,3.65169004,3104.3,3102.0,3.32589663]
[1768231072589,3.49043004,3104.1,3102.0,3.32589663]
[1768231072892,3.49043004,3103.9,3101.8,0.16138]
[1768231073484,3.49043004,3103.9,3101.8,0.16553617]
[1768231073796,3.49043004,3103.9,3102.0,0.16137]
[1768231073987,4.79743004,3103.9,3102.0,3.48726663]
[1768231074492,3.49043004,3103.9,3102.0,3.48726663]
[1768231074693,4.79743004,3103.9,3102.0,3.48726663]
[1768231075798,3.49043004,3103.8,3102.0,3.48726663]
[1768231075999,3.49043004,3103.4,3101.8,0.00415617]
[1768231077188,1.307,3103.9,3101.9,3.32589663]
[1768231077394,3.49043004,3104.0,3102.0,0.16137]
[1768231077596,4.79743004,3104.0,3102.0,0.16137]
[1768231079401,3.49043004,3104.0,3102.1,0.16137]
[1768231080699,3.49043004,3104.0,3102.1,3.48726663]
[1768231080903,3.49043004,3104.5,3102.3,3.32589663]
[1768231081201,0.00412624,3104.6,3103.1,0.16132]
[1768231081395,0.00412624,3104.6,3102.8,3.32589663]
[1768231081605,0.00412624,3104.6,3102.8,9.32589663]
[1768231081800,0.00412624,3104.6,3102.9,3.32589663]
[1768231082201,0.00412624,3104.6,3103.4,0.1613]
[1768231084405,0.00412624,3104.6,3102.9,3.32589663]
[1768231084705,0.00412624,3104.6,3102.7,2.00032457]
[1768231084903,3.65204975,3105.6,3103.7,0.16128]
[1768231085205,4.95804975,3105.6,3103.8,0.16128]
[1768231085506,4.95804975,3105.6,3103.7,2.00032457]
[1768231085706,4.95804975,3105.6,3104.0,0.16127]
[1768231086006,1.30956636,3105.6,3104.1,0.16126]
[1768231086204,3.65204975,3105.5,3104.0,0.00297946]
[1768231087502,1.30956636,3105.6,3104.0,0.00297946]
[1768231088308,1.30956636,3105.6,3104.1,0.16126]
[1768231088696,0.00356636,3105.6,3104.1,0.16126]
[1768231089111,3.65561611,3105.6,3104.0,0.00297946]
[1768231089314,3.65204975,3105.0,3102.8,3.71668498]
[1768231089618,4.95804975,3105.0,3102.9,0.16133]
[1768231089917,3.65204975,3105.5,3103.3,3.55535498]
[1768231090121,4.95804975,3105.5,3103.4,3.55535498]
[1768231090321,4.95804975,3105.5,3103.4,3.55846596]
[1768231090617,3.65204975,3105.4,3103.4,0.00311098]
[1768231090820,3.65204975,3105.1,3103.4,0.00311098]
[1768231092023,1.306,3105.0,3103.4,0.00311098]
[1768231092723,3.48191682,3105.6,3103.7,0.16129]
[1768231092913,3.47835046,3105.4,3103.7,0.16129]
[1768231093315,3.63955046,3105.4,3103.4,0.00311098]
[1768231093515,3.63955046,3105.4,3103.5,0.16129]
[1768231093712,3.63955046,3105.4,3103.6,0.16129]
[1768231093922,3.47835046,3105.4,3103.6,0.16129]
[1768231094114,0.00356636,3105.6,3103.6,3.41967349]
[1768231094310,0.00356636,3105.6,3104.1,0.16126]
[1768231095220,3.47835046,3107.0,3104.8,3.58090349]
[1768231095614,3.47835046,3107.0,3104.9,0.16122]
[1768231095813,3.47835046,3107.0,3105.3,0.1612]
[1768231096024,3.48186812,3107.0,3105.3,0.1612]
[1768231096225,3.48186812,3107.0,3105.3,0.41572809]
[1768231097321,3.48186812,3107.0,3105.4,0.1612]
[1768231097925,3.48186812,3107.0,3105.0,5.41999806]
[1768231098128,3.48186812,3107.0,3105.0,5.68192118]
[1768231098329,3.48186812,3107.0,3105.1,0.16121]
[1768231098825,3.48186812,3107.0,3105.1,3.41967349]
[1768231099029,0.00351766,3107.0,3105.3,3.58087349]
[1768231099340,3.48186812,3107.0,3105.3,3.58087349]
[1768231099623,3.48186812,3107.0,3105.3,0.1612]
[1768231100426,3.48186812,3107.0,3105.0,0.26192312]
[1768231100730,3.48186812,3107.0,3104.7,0.16123]
[1768231100931,3.47835046,3106.3,3104.3,3.41967349]
[1768231101527,3.47835046,3106.3,3104.1,0.16127]
[1768231102322,3.63953046,3105.8,3103.7,0.16129]
[1768231102728,3.47835046,3105.6,3103.7,0.16129]
[1768231103731,3.63954046,3105.6,3103.7,0.16129]
[1768231103923,4.94454046,3105.6,3103.7,0.16129]
[1768231104424,4.94454046,3105.6,3103.6,0.25356648]
[1768231104425,3.47835046,3105.6,3103.8,0.16128]
[1768231104633,4.78335046,3105.6,3103.8,0.16128]
[1768231105433,3.47835046,3105.5,3103.8,0.16128]
[1768231106832,3.47835046,3105.5,3103.3,3.41967349]
[1768231107029,3.47835046,3105.5,3103.4,0.16441098]
[1768231107230,3.47835046,3105.5,3103.5,0.1613]
[1768231107529,3.47835046,3105.5,3103.4,0.00311098]
[1768231107530,3.47835046,3105.5,3103.6,0.16129]
[1768231108123,4.78335046,3105.5,3103.6,0.16129]
[1768231109240,3.47835046,3105.4,3103.6,0.16129]
[1768231109630,3.47835046,3105.4,3103.4,0.00311098]
[1768231109838,3.47835046,3105.0,3103.4,0.00311098]
[1768231110635,3.63957046,3105.0,3103.4,0.00311098]
[1768231110828,3.47835046,3105.6,3103.6,3.58096349]
[1768231111030,3.47835046,3105.5,3103.7,0.16128]
[1768231111936,3.63954046,3105.5,3103.4,0.00311098]
[1768231112434,3.63955046,3105.3,3103.4,0.00311098]
[1768231112829,3.63955046,3105.3,3103.4,3.42278447]
[1768231113233,3.63955046,3105.3,3103.4,3.58408447]
[1768231115231,3.63955046,3105.3,3103.4,0.16441098]
[1768231116137,1.305,3105.2,3103.4,0.16441098]
[1768231116328,3.51799513,3105.1,3103.4,0.16441098]
[1768231116528,3.67920513,3105.1,3103.4,0.00311098]
[1768231117136,3.51799513,3104.9,3103.4,0.00311098]
[1768231117532,3.51799513,3104.4,3102.4,3.57574578]
[1768231117835,3.51799513,3104.2,3102.4,3.83159255]
[1768231118431,3.51799513,3104.2,3102.4,0.16135]
[1768231118735,3.68289946,3104.2,3102.4,0.1650866]
[1768231119636,3.68289946,3104.2,3102.4,0.0037366]
[1768231119833,0.00364433,3104.2,3102.4,3.41813238]
[1768231120037,0.47564433,3104.2,3102.5,0.16135]
[1768231120235,0.00364433,3104.2,3102.6,0.16134]
[1768231121343,0.00364433,3104.2,3102.6,3.41439578]
[1768231121734,0.00364433,3104.2,3103.1,3.57570578]
[1768231122642,0.00364433,3104.2,3103.1,0.16131]
[1768231124239,0.00364433,3104.2,3103.1,3.57570578]
[1768231124937,0.00364433,3104.2,3103.2,0.16131]
[1768231125135,0.00364433,3104.2,3103.2,3.57570578]
[1768231125745,0.00364433,3104.2,3103.3,0.16131]
[1768231125935,1.306,3105.1,3103.3,3.57570578]
[1768231126943,1.30894131,3105.1,3103.3,3.57570578]
[1768231127145,0.00294131,3105.1,3103.3,3.57570578]
[1768231127344,0.00294131,3105.1,3103.4,0.1613]
[1768231127936,0.00294131,3105.1,3103.8,0.16128]
[1768231128245,0.00294131,3105.1,3103.8,3.57567578]
[1768231129141,0.00294131,3105.1,3103.3,3.41439578]
[1768231129346,0.00294131,3105.1,3103.4,3.57569578]
[1768231129542,3.52093644,3105.1,3103.4,0.1613]
[1768231130646,3.52093644,3105.1,3102.8,3.41439578]
[1768231130647,3.51799513,3104.9,3102.8,3.57572578]
[1768231130944,0.00294131,3105.1,3103.3,3.41439578]
[1768231131151,1.30894131,3105.1,3103.3,3.41439578]
[1768231131350,1.30894131,3105.1,3103.4,0.1613]
[1768231132752,0.00294131,3105.1,3103.4,0.1613]
[1768231133045,1.30894131,3105.1,3103.4,0.1613]
[1768231133251,1.30894131,3105.1,3103.5,0.1613]
[1768231133454,0.00294131,3105.1,3103.5,0.1613]
[1768231133747,0.00294131,3105.1,3103.3,3.41439578]
[1768231133953,0.00294131,3105.1,3103.9,0.16128]
[1768231134253,0.00294131,3105.1,3104.2,0.16126]
[1768231134847,3.51799513,3106.0,3104.3,3.57564578]
[1768231135756,3.52132175,3106.0,3104.3,3.57564578]
[1768231135957,3.52132175,3106.0,3104.4,0.16125]
[1768231136152,0.00332662,3106.0,3104.4,3.57564578]
[1768231136653,0.00332662,3106.0,3104.4,3.41439578]
[1768231137060,0.00332662,3106.0,3104.8,0.16123]
[1768231137250,0.00332662,3106.0,3104.9,0.16122]
[1768231137553,0.00332662,3106.0,3105.1,0.16121]
[1768231138149,0.559,3106.9,3105.2,3.57560578]
[1768231138554,4.07699513,3106.9,3105.2,3.57560578]
[1768231138750,4.07699513,3106.9,3105.2,0.16121]
[1768231138954,3.51799513,3106.9,3105.2,0.16121]
[1768231139154,3.51799513,3108.6,3105.2,3.41439578]
[1768231139358,3.67901513,3108.9,3106.7,3.57552578]
[1768231139649,3.67905513,3108.1,3105.9,0.16117]
[1768231139859,3.51799513,3107.9,3105.9,0.16117]
[1768231140161,3.51799513,3109.5,3107.1,0.16111]
[1768231140452,3.51799513,3109.5,3107.1,3.57550578]
[1768231140654,4.68625061,3109.1,3107.1,3.57550578]
[1768231140858,3.51799513,3109.0,3107.1,3.57550578]
[1768231141248,3.51799513,3109.0,3107.1,3.57861423]
[1768231141453,0.00276144,3109.0,3107.2,3.41439578]
[1768231141649,0.00276144,3109.0,3107.5,3.41439578]
[1768231141849,3.52075657,3109.0,3107.1,0.00310845]
[1768231142052,1.305,3108.9,3107.1,0.00310845]
[1768231142253,3.52075657,3109.0,3107.1,3.41750423]
[1768231142759,0.00276144,3109.0,3107.1,3.57861423]
[1768231143262,3.52075657,3109.0,3107.1,0.00310845]
[1768231144863,3.52075657,3109.0,3107.1,3.453727]
[1768231145262,3.52075657,3109.0,3107.1,3.614837]
[1768231146067,3.6192771,3108.9,3107.1,0.00310845]
[1768231146456,0.00276144,3109.0,3107.1,0.00310845]
[1768231146767,3.62203854,3109.0,3107.1,0.00310845]
[1768231147957,8.1462771,3108.9,3107.1,0.00310845]
[1768231148257,4.9242771,3108.9,3107.1,0.00310845]
[1768231148454,3.6192771,3108.9,3107.1,3.453727]
[1768231148656,0.00276144,3109.0,3107.1,3.453727]
[1768231149360,0.00276144,3109.0,3107.2,0.1611]
[1768231149853,0.00276144,3109.0,3107.2,3.61171855]
[1768231150064,0.00276144,3109.0,3107.3,0.1611]
[1768231150363,3.222,3109.6,3107.2,3.45061855]
[1768231150364,3.6192771,3109.9,3107.9,0.16107]
[1768231150557,4.9232771,3109.9,3108.1,0.16106]
[1768231150757,4.9232771,3109.9,3108.1,3.61167855]
[1768231151157,4.9232771,3109.9,3108.4,3.61165855]
[1768231151158,1.304,3109.9,3108.4,3.61165855]
[1768231151365,1.30752648,3109.9,3108.4,3.61165855]
[1768231151958,1.30752648,3109.9,3108.4,3.86648077]
[1768231152262,0.00352648,3109.9,3108.4,0.16104]
[1768231153065,0.00352648,3109.9,3108.4,3.66009113]
[1768231154562,0.00352648,3109.9,3108.4,0.16104]
[1768231155157,0.00352648,3109.9,3108.5,0.16103]
[1768231155569,0.00352648,3109.9,3108.6,0.16103]
[1768231156975,0.00352648,3109.9,3108.7,0.16102]
[1768231157271,0.00352648,3109.9,3108.7,3.66007113]
[1768231157867,0.00352648,3109.9,3108.2,3.66010113]
[1768231158166,0.00352648,3109.9,3108.3,0.16105]
[1768231158665,3.65415172,3109.9,3108.3,0.16105]
[1768231160469,9.65415172,3109.9,3107.5,0.16109]
[1768231160667,0.16097,3109.8,3107.5,0.16109]
[1768231160872,3.65062524,3109.7,3107.6,3.66013113]
[1768231161169,4.524,3109.6,3108.0,0.16106]
[1768231161362,3.65062524,3109.7,3108.0,0.16106]
[1768231161766,1.304,3109.6,3108.0,0.16106]
[1768231163173,4.95462524,3109.6,3108.0,0.16106]
[1768231163674,3.65062524,3109.5,3107.4,0.16109]
[1768231163866,3.65062524,3109.5,3107.5,0.16109]
[1768231164071,3.65062524,3109.5,3107.6,0.16108]
[1768231164279,4.524,3109.4,3107.7,3.49905113]
[1768231164465,3.65062524,3109.5,3107.7,3.49905113]
[1768231164666,1.304,3109.4,3107.8,0.16107]
[1768231164865,3.65062524,3109.5,3107.9,0.16107]
[1768231165068,0.00352648,3109.9,3108.7,3.66008113]
[1768231165476,0.00352648,3109.9,3108.9,0.16101]
[1768231165674,0.00352648,3109.9,3109.0,0.16101]
[1768231167777,0.00352648,3109.9,3109.0,3.66006113]
[1768231168778,0.00352648,3109.9,3109.0,0.16101]
[1768231169678,0.00352648,3109.9,3109.1,0.16101]
[1768231171176,0.00352648,3109.9,3108.7,3.49905113]
[1768231171478,0.00352648,3109.9,3108.7,0.16103]
[1768231171780,0.00352648,3109.9,3108.8,0.16102]
[1768231172982,0.00352648,3109.9,3108.2,3.49905113]
[1768231173182,3.65415172,3109.9,3108.2,0.16105]
[1768231176381,4.522,3109.8,3108.2,0.16105]
[1768231177377,4.522,3109.8,3107.7,3.49905113]
[1768231177583,1.303,3109.8,3108.3,3.61756452]
[1768231177770,1.30652648,3109.9,3108.5,0.16104]
[1768231178979,1.30652648,3109.9,3107.9,1.9883452]
[1768231178980,3.38974693,3109.8,3107.9,0.16106]
[1768231179374,3.38974693,3109.8,3107.8,3.61756452]
[1768231179571,0.00352648,3109.9,3108.2,3.77861452]
[1768231179878,0.00352648,3109.9,3108.4,3.61756452]
[1768231180385,0.00352648,3109.9,3108.7,0.16102]
[1768231181184,0.00352648,3109.9,3108.9,0.16101]
[1768231181582,0.00352648,3109.9,3109.0,0.16101]
[1768231184184,0.00352648,3109.9,3109.0,3.77857452]
[1768231184386,0.00352648,3109.9,3109.0,3.61756452]
[1768231185488,3.38974693,3110.9,3109.0,3.61756452]
[1768231185781,3.38974693,3110.7,3109.3,0.16099]
[1768231186581,3.39243804,3110.7,3109.3,0.16356191]
[1768231187384,0.00269111,3110.7,3109.3,0.16356191]
[1768231187587,0.00269111,3110.7,3109.3,3.62013643]
[1768231187789,0.00269111,3110.7,3109.7,0.16097]
[1768231188684,0.00269111,3110.7,3109.3,0.00257191]
[1768231189490,0.00269111,3110.7,3109.3,0.16357191]
[1768231189789,0.00269111,3110.7,3109.3,0.00257191]
[1768231190290,0.00269111,3110.7,3109.6,0.16098]
[1768231191593,0.00269111,3110.7,3109.7,0.16097]
[1768231192792,0.00269111,3110.7,3109.7,3.61756452]
[1768231192984,0.00269111,3110.7,3109.8,3.77853452]
[1768231193689,0.00269111,3110.7,3109.8,3.61756452]
[1768231193992,0.00269111,3110.7,3109.9,0.16096]
[1768231194891,0.16086,3112.0,3110.1,3.77851452]
[1768231195092,4.69174693,3111.9,3110.1,3.77851452]
[1768231195400,3.38974693,3111.8,3110.1,0.16095]
[1768231195893,3.55418828,3111.8,3110.1,0.16095]
[1768231196299,3.38974693,3111.5,3109.6,3.61756452]
[1768231196498,3.38974693,3111.5,3109.6,3.77854452]
[1768231197695,3.38974693,3111.5,3109.6,0.16098]
[1768231198607,0.16089,3111.3,3109.6,0.16098]
[1768231198999,3.55063693,3111.3,3109.6,0.16098]
[1768231200907,3.38974693,3111.3,3109.8,0.16097]
[1768231201106,3.39331828,3111.8,3110.0,0.16096]
[1768231201306,3.55418828,3111.8,3110.0,0.16096]
[1768231201603,3.55418828,3111.8,3110.1,0.16095]
[1768231201807,4.69531828,3111.8,3110.3,0.16094]
[1768231202004,4.69531828,3111.8,3109.3,0.00257191]
[1768231202005,0.00357135,3111.8,3110.4,3.77850452]
[1768231202809,0.00357135,3111.8,3110.7,0.16092]
[1768231203012,0.00357135,3111.8,3110.7,3.77848452]
[1768231203206,0.00357135,3111.8,3110.7,3.61756452]
[1768231203405,3.218,3112.6,3111.0,0.16091]
[1768231203606,0.773,3112.8,3111.0,3.61756452]
[1768231203903,3.38974693,3113.4,3111.9,0.16086]
[1768231204108,1.302,3113.7,3111.9,0.16086]
[1768231204308,1.302,3113.7,3112.0,3.44536648]
[1768231204509,0.00247483,3113.7,3112.3,3.60620648]
[1768231204703,0.00247483,3113.7,3112.0,0.00317]
[1768231204704,0.00247483,3113.7,3112.5,3.60619648]
[1768231205204,0.00247483,3113.7,3112.7,3.44536648]
[1768231205504,0.00247483,3113.7,3112.6,0.16082]
[1768231205810,0.00247483,3113.7,3112.1,3.44536648]
[1768231206417,0.00247483,3113.7,3112.1,3.60621648]
[1768231206907,0.00247483,3113.7,3112.2,0.16084]
[1768231207114,0.00247483,3113.7,3112.3,3.60620648]
[1768231207404,0.95249276,3114.9,3113.0,3.44536648]
[1768231207604,1.9883452,3116.2,3113.1,1.329]
[1768231207812,25.669,3166.2,3113.1,1.329]
[1768231207813,0.1602,3124.9,3118.5,3.44536648]
[1768231207999,11.9,3123.7,3119.8,3.44536648]
[1768231208201,0.16028,3123.2,3119.9,3.44536648]
[1768231208415,2.15146024,3123.2,3120.1,3.44536648]
[1768231208606,0.0462774,3121.7,3120.5,3.44536648]
[1768231208913,0.00283504,3123.2,3120.9,3.44536648]
[1768231209109,0.00283504,3123.2,3121.1,3.44536648]
[1768231210515,9.58848461,3123.1,3120.5,1.328]
[1768231210814,3.58848461,3123.1,3120.6,3.44536648]
[1768231211013,3.58848461,3122.7,3120.0,5.43371168]
[1768231211217,3.58848461,3122.7,3120.0,3.44536648]
[1768231211518,0.01672848,3121.4,3120.0,3.44536648]
[1768231211716,3.214,3123.4,3120.1,1.328]
[1768231212018,3.214,3123.4,3120.3,3.44536648]
[1768231212219,3.214,3123.4,3120.5,3.44536648]
[1768231212415,3.214,3123.4,3120.5,4.77236648]
[1768231212617,3.214,3123.4,3120.9,3.32202427]
[1768231212812,4.70345193,3123.8,3120.9,3.32202427]
[1768231213207,4.70345193,3123.8,3121.1,3.32202427]
[1768231214318,1.11496732,3123.8,3121.5,3.32202427]
[1768231214529,0.16012,3126.3,3122.9,3.32202427]
[1768231214818,0.15993,3130.0,3120.7,6.0]
[1768231214819,4.11829822,3127.5,3124.7,3.32202427]
[1768231215017,3.212,3126.8,3124.7,3.32202427]
[1768231215318,1.11496732,3126.2,3124.2,3.48224427]
[1768231215524,0.00366915,3126.2,3124.4,3.32202427]
[1768231215723,0.00366915,3126.2,3124.8,3.32202427]
[1768231216225,3.58029822,3128.1,3125.0,3.32202427]
[1768231216421,3.58029822,3127.5,3125.0,3.32202427]
[1768231216921,3.58029822,3126.7,3124.2,0.00407072]
[1768231217121,3.58029822,3127.3,3124.2,3.32609499]
[1768231217324,3.58029822,3125.9,3123.2,0.16028]
[1768231217525,3.58029822,3125.7,3123.2,0.16028]
[1768231217723,8.09029822,3125.7,3123.4,0.16027]
[1768231218021,8.09029822,3125.7,3122.5,0.16031]
[1768231218022,3.58029822,3125.6,3122.5,0.16031]
[1768231218319,3.58029822,3125.6,3123.0,0.16029]
[1768231218622,3.58029822,3125.5,3123.0,0.16029]
[1768231219124,1.11496732,3125.0,3122.5,0.00376215]
[1768231219325,3.58029822,3125.2,3122.6,3.32202427]
[1768231219516,3.58029822,3125.2,3123.1,0.16028]
[1768231219910,3.58029822,3125.2,3122.6,3.32202427]
[1768231220116,3.58029822,3125.8,3123.8,0.16025]
[1768231220318,8.08829822,3126.4,3123.8,0.16025]
[1768231220527,1.11496732,3125.8,3123.8,0.16025]
[1768231220711,3.58029822,3125.7,3122.8,3.48232427]
[1768231220918,3.58029822,3125.6,3122.9,0.16029]
[1768231221320,3.58029822,3125.5,3122.8,3.32202427]
[1768231221625,3.58029822,3126.6,3123.4,3.32202427]
[1768231221820,3.58029822,3126.6,3124.3,0.16022]
[1768231222020,3.58029822,3126.1,3123.4,3.48229427]
[1768231222729,3.58029822,3125.9,3123.4,0.16027]
[1768231222932,3.58029822,3125.3,3122.7,3.32202427]
[1768231223224,3.58029822,3125.1,3122.6,0.16031]
[1768231223430,3.58029822,3124.7,3122.5,0.00376215]
[1768231223622,6.13042375,3124.2,3122.5,0.00376215]
[1768231223922,3.58029822,3124.0,3121.9,0.16035]
[1768231224331,0.00241427,3124.2,3121.8,3.32202427]
[1768231224625,0.00241427,3124.2,3122.6,0.16031]
[1768231224833,0.00241427,3124.2,3122.7,0.1603]
[1768231225129,1.11496732,3124.1,3122.7,0.1603]
[1768231225326,4.69526554,3124.1,3121.8,3.32202427]
[1768231225529,4.506,3124.0,3121.8,3.32202427]
[1768231225727,0.00241427,3124.2,3122.7,0.1603]
[1768231226124,0.00241427,3124.2,3122.8,3.32202427]
[1768231226326,3.58029822,3125.4,3122.8,3.32202427]
[1768231226528,4.65929822,3125.4,3123.0,3.32202427]
[1768231226721,4.65929822,3125.4,3123.8,0.16025]
[1768231226923,6.13042375,3126.8,3124.1,0.16023]
[1768231227129,3.58029822,3126.6,3124.1,0.16023]
[1768231227427,6.78629822,3126.5,3124.7,0.1602]
[1768231227633,8.08529822,3126.5,3124.7,0.1602]
[1768231228018,3.58029822,3126.3,3124.1,0.00334937]
[1768231228618,3.58029822,3125.7,3124.1,0.00334937]
[1768231228931,1.299,3125.6,3123.0,3.32202427]
[1768231229135,1.299,3125.6,3124.0,0.16024]
[1768231229632,3.58029822,3126.1,3123.2,3.32202427]
[1768231229821,3.58029822,3125.6,3123.2,3.32529305]
[1768231230320,4.87929822,3125.5,3123.3,0.16027]
[1768231230623,1.299,3126.1,3124.4,0.16022]
[1768231230826,3.58029822,3126.0,3124.4,0.16022]
[1768231231033,1.1188086,3126.6,3124.4,0.16022]
[1768231231034,0.00384128,3126.6,3125.6,0.16016]
[1768231231223,1.11496732,3126.5,3125.6,0.16366591]
[1768231231418,0.00384128,3126.6,3125.6,0.00350591]
[1768231231619,3.05365176,3129.7,3125.6,0.00350591]